Workbook

Sheet Лист1
A1: Школа | C1: МБОУ Усть-Есинская СОШ | F1: Утвердил: | G1: должность | H1: директор
A2: Типовое примерное меню приготавливаемых блюд | G2: фамилия | H2: Чебодаева Н.И.
A3: Возрастная категория | E3: 7-11 лет | G3: дата | H3: 2025-09-01
A5: Неделя | B5: День недели | C5: Прием пищи | D5: Раздел меню | E5: Блюда | F5: Вес блюда, г | G5: Белки | H5: Жиры | I5: Углеводы | J5: Калорийность | K5: № рецептуры
A6: 1 | B6: 1 | C6: Завтрак | D6: гор.блюдо | E6: Каша вязкая молочная рисовая с маслом сливочным | F6: 200 | G6: 5.7 | H6: 9.8 | I6: 43.4 | J6: 284.4 | K6: 411
E7: Яйцо вареное | F7: 40 | G7: 4.8 | H7: 4 | I7: 0.3 | J7: 56.6 | K7: 453
D8: гор.напиток | E8: Какао | F8: 200 | G8: 4.7 | H8: 3.5 | I8: 12.5 | J8: 100.4 | K8: 1025
D9: хлеб | E9: Хлеб ржаной | F9: 30 | G9: 2 | H9: 0.4 | I9: 10 | J9: 51.2
D10: фрукты
E11: Хлеб пшеничный | F11: 40 | G11: 3 | H11: 0.3 | I11: 19.7 | J11: 93.8
D13: итого | F13: =SUM(F6:F12) -> 510 | G13: =SUM(G6:G12) -> 20.2 | H13: 18 | I13: 85.9 | J13: 586.4
A14: =A6 -> 1 | B14: =B6 -> 1 | C14: Обед | D14: закуска
D15: 1 блюдо
D16: 2 блюдо
D17: гарнир
D18: напиток
D19: хлеб бел.
D20: хлеб черн.
D23: итого | F23: =SUM(F14:F22) -> 0 | G23: =SUM(G14:G22) -> 0 | H23: 0 | I23: 0 | J23: 0
A24: =A6 -> 1 | B24: =B6 -> 1 | C24: Итого за день: | F24: =F13+F23 -> 510 | G24: =G13+G23 -> 20.2 | H24: 18 | I24: 85.9 | J24: 586.4
A25: 1 | B25: 2 | C25: Завтрак | D25: гор.блюдо | E25: Картофельное пюре | F25: 200 | G25: 6 | H25: 7.3 | I25: 35.4 | J25: 239.4 | K25: 759
E26: Котлета рыбная(минтай) | F26: 90 | G26: 12.6 | H26: 2.4 | I26: 7.7 | J26: 143.9 | K26: 541
D27: гор.напиток | E27: Чай с медом | F27: 200 | G27: 0.4 | H27: 0.4 | I27: 9.7 | J27: 44.5 | K27: 1009
D28: хлеб | E28: Хлеб ржаной | F28: 35 | G28: 2.3 | H28: 0.4 | I28: 11.7 | J28: 59.8
D29: фрукты
E30: Хлеб пшеничный | F30: 40 | G30: 3 | H30: 0.3 | I30: 19.7 | J30: 93.8
E31: Огурцы соленые порциями | F31: 60 | G31: 0.4 | H31: 0 | I31: 1.1 | J31: 6.3
D32: итого | F32: =SUM(F25:F31) -> 625 | G32: =SUM(G25:G31) -> 24.7 | H32: =SUM(H25:H31) -> 10.8 | I32: =SUM(I25:I31) -> 85.3 | J32: =SUM(J25:J31) -> 587.7
A33: =A25 -> 1 | B33: =B25 -> 2 | C33: Обед | D33: закуска
D34: 1 блюдо
D35: 2 блюдо
D36: гарнир
D37: напиток
D38: хлеб бел.
D39: хлеб черн.
D42: итого | F42: =SUM(F33:F41) -> 0 | G42: =SUM(G33:G41) -> 0 | H42: =SUM(H33:H41) -> 0 | I42: =SUM(I33:I41) -> 0 | J42: =SUM(J33:J41) -> 0
A43: =A25 -> 1 | B43: =B25 -> 2 | C43: Итого за день: | F43: =F32+F42 -> 625 | G43: =G32+G42 -> 24.7 | H43: =H32+H42 -> 10.8 | I43: =I32+I42 -> 85.3 | J43: =J32+J42 -> 587.7
A44: 1 | B44: 3 | C44: Завтрак | D44: гор.блюдо | E44: Каша вязкая молочная пшеничная с изюмом | F44: 210 | G44: 8.4 | H44: 9.3 | I44: 44.6 | J44: 295.5 | K44: 413
E45: Сыр твердых сортов в нарезке | F45: 30 | G45: 7 | H45: 8.9 | I45: 0 | J45: 107.5 | K45: 42
D46: гор.напиток | E46: Кофейный напиток с молоком | F46: 200 | G46: 3.9 | H46: 2.9 | I46: 11.2 | J46: 86 | K46: 1024
D47: хлеб | E47: Хлеб ржаной | F47: 30 | G47: 1.5 | H47: 0.2 | I47: 9.8 | J47: 46.9
D48: фрукты
E49: Хлеб пшеничный | F49: 30 | G49: 2 | H49: 0.4 | I49: 10 | J49: 51.2
D51: итого | F51: =SUM(F44:F50) -> 500 | G51: =SUM(G44:G50) -> 22.8 | H51: =SUM(H44:H50) -> 21.7 | I51: =SUM(I44:I50) -> 75.6 | J51: =SUM(J44:J50) -> 587.1
A52: =A44 -> 1 | B52: =B44 -> 3 | C52: Обед | D52: закуска
D53: 1 блюдо
D54: 2 блюдо
D55: гарнир
D56: напиток
D57: хлеб бел.
D58: хлеб черн.
D61: итого | F61: =SUM(F52:F60) -> 0 | G61: =SUM(G52:G60) -> 0 | H61: =SUM(H52:H60) -> 0 | I61: =SUM(I52:I60) -> 0 | J61: =SUM(J52:J60) -> 0
A62: =A44 -> 1 | B62: =B44 -> 3 | C62: Итого за день: | F62: =F51+F61 -> 500 | G62: =G51+G61 -> 22.8 | H62: =H51+H61 -> 21.7 | I62: =I51+I61 -> 75.6 | J62: =J51+J61 -> 587.1
A63: 1 | B63: 4 | C63: Завтрак | D63: гор.блюдо | E63: Запеканка рисовая с творогом | F63: 200 | G63: 9.3 | H63: 9.1 | I63: 39.5 | J63: 277.6 | K63: 420
E64: Яйцо вареное | F64: 40 | G64: 4.8 | H64: 4 | I64: 0.3 | J64: 56.6 | K64: 453
D65: гор.напиток | E65: Какао с молоком сгущенным | F65: 200 | G65: 3.5 | H65: 3.4 | I65: 22.3 | J65: 133.4 | K65: 1026
D66: хлеб | E66: Хлеб ржаной | F66: 30 | G66: 2 | H66: 0.4 | I66: 10 | J66: 51.2
D67: фрукты
E68: Хлеб пшеничный | F68: 30 | G68: 2.3 | H68: 0.2 | I68: 14.8 | J68: 70.3
D70: итого | F70: =SUM(F63:F69) -> 500 | G70: =SUM(G63:G69) -> 21.9 | H70: =SUM(H63:H69) -> 17.1 | I70: =SUM(I63:I69) -> 86.9 | J70: =SUM(J63:J69) -> 589.1
A71: =A63 -> 1 | B71: =B63 -> 4 | C71: Обед | D71: закуска
D72: 1 блюдо
D73: 2 блюдо
D74: гарнир
D75: напиток
D76: хлеб бел.
D77: хлеб черн.
D80: итого | F80: =SUM(F71:F79) -> 0 | G80: =SUM(G71:G79) -> 0 | H80: =SUM(H71:H79) -> 0 | I80: =SUM(I71:I79) -> 0 | J80: =SUM(J71:J79) -> 0
A81: =A63 -> 1 | B81: =B63 -> 4 | C81: Итого за день: | F81: =F70+F80 -> 500 | G81: =G70+G80 -> 21.9 | H81: =H70+H80 -> 17.1 | I81: =I70+I80 -> 86.9 | J81: =J70+J80 -> 589.1
A82: 1 | B82: 5 | C82: Завтрак | D82: гор.блюдо | E82: Рис припущенный | F82: 150 | G82: 3.5 | H82: 4.8 | I82: 35 | J82: 165 | K82: 405
E83: Котлета из курицы | F83: 90 | G83: 17.2 | H83: 3.9 | I83: 12 | J83: 151.8 | K83: 732
D84: гор.напиток | E84: Чай с лимоном | F84: 200 | G84: 0.2 | H84: 0.1 | I84: 2.9 | J84: 13 | K84: 1010
D85: хлеб | E85: Хлеб ржаной | F85: 35 | G85: 2.3 | H85: 0.4 | I85: 11.7 | J85: 59.8
D86: фрукты | E86: Икра свекольная | F86: 60 | G86: 1.3 | H86: 4.3 | I86: 6.9 | J86: 71.4 | K86: 131
E87: Соус белый основной | F87: 50 | G87: 1.4 | H87: 1.9 | I87: 2.2 | J87: 32.2 | K87: 852
E88: Хлеб пшеничный | F88: 40 | G88: 3 | H88: 0.3 | I88: 19.7 | J88: 93.8
D89: итого | F89: =SUM(F82:F88) -> 625 | G89: =SUM(G82:G88) -> 28.9 | H89: =SUM(H82:H88) -> 15.7 | I89: =SUM(I82:I88) -> 90.4 | J89: =SUM(J82:J88) -> 587
A90: =A82 -> 1 | B90: =B82 -> 5 | C90: Обед | D90: закуска
D91: 1 блюдо
D92: 2 блюдо
D93: гарнир
D94: напиток
D95: хлеб бел.
D96: хлеб черн.
D99: итого | F99: =SUM(F90:F98) -> 0 | G99: =SUM(G90:G98) -> 0 | H99: =SUM(H90:H98) -> 0 | I99: =SUM(I90:I98) -> 0 | J99: =SUM(J90:J98) -> 0
A100: =A82 -> 1 | B100: =B82 -> 5 | C100: Итого за день: | F100: =F89+F99 -> 625 | G100: =G89+G99 -> 28.9 | H100: =H89+H99 -> 15.7 | I100: =I89+I99 -> 90.4 | J100: =J89+J99 -> 587
A101: 2 | B101: 1 | C101: Завтрак | D101: гор.блюдо | E101: Каша "Дружба" | F101: 200 | G101: 5 | H101: 5.9 | I101: 24 | J101: 168.9 | K101: 411
E102: Сыр твердых сортов в нарезке | F102: 30 | G102: 7 | H102: 8.9 | I102: 0 | J102: 107.5 | K102: 42
D103: гор.напиток | E103: Кофейный напиток с молоком | F103: 200 | G103: 3.9 | H103: 2.9 | I103: 11.2 | J103: 86 | K103: 1024
D104: хлеб | E104: Хлеб пшеничный | F104: 35 | G104: 2.7 | H104: 0.3 | I104: 17.2 | J104: 82
D105: фрукты
E106: Хлеб ржаной | F106: 25 | G106: 1.7 | H106: 0.3 | I106: 8.4 | J106: 42.7
E107: Смасло сливочное (порциями) | F107: 15 | G107: 0.1 | H107: 10.9 | I107: 0.2 | J107: 99.1 | K107: 41
D108: итого | F108: =SUM(F101:F107) -> 505 | G108: =SUM(G101:G107) -> 20.4 | H108: 29.2 | I108: 61 | J108: 586.2
A109: =A101 -> 2 | B109: =B101 -> 1 | C109: Обед | D109: закуска
D110: 1 блюдо
D111: 2 блюдо
D112: гарнир
D113: напиток
D114: хлеб бел.
D115: хлеб черн.
D118: итого | F118: =SUM(F109:F117) -> 0 | G118: =SUM(G109:G117) -> 0 | H118: 0 | I118: 0 | J118: 0
A119: =A101 -> 2 | B119: =B101 -> 1 | C119: Итого за день: | F119: =F108+F118 -> 505 | G119: =G108+G118 -> 20.4 | H119: =H108+H118 -> 29.2 | I119: =I108+I118 -> 61 | J119: =J108+J118 -> 586.2
A120: 2 | B120: 2 | C120: Завтрак | D120: гор.блюдо | E120: Рагу из овощей | F120: 200 | G120: 3.8 | H120: 10 | I120: 18.2 | J120: 199.8 | K120: 348
E121: Курица запеченная | F121: 90 | G121: 7.5 | H121: 10.1 | I121: 0.1 | J121: 137.5 | K121: 712
D122: гор.напиток | E122: Чай с молоком и сахаром | F122: 200 | G122: 1.6 | H122: 1.1 | I122: 8.6 | J122: 50.9 | K122: 1011
D123: хлеб | E123: Хлеб пшеничный | F123: 40 | G123: 3 | H123: 0.3 | I123: 19.7 | J123: 93.8
D124: фрукты
E125: Хлеб ржаной | F125: 40 | G125: 2.6 | H125: 0.5 | I125: 13.4 | J125: 68.3
E126: Горошек зеленый консервированный | F126: 30 | G126: 2.9 | H126: 0.2 | I126: 5.9 | J126: 36.9
D127: итого | F127: =SUM(F120:F126) -> 600 | G127: =SUM(G120:G126) -> 21.4 | H127: 22.2 | I127: 65.9 | J127: 587.2
A128: =A120 -> 2 | B128: =B120 -> 2 | C128: Обед | D128: закуска
D129: 1 блюдо
D130: 2 блюдо
D131: гарнир
D132: напиток
D133: хлеб бел.
D134: хлеб черн.
D137: итого | F137: =SUM(F128:F136) -> 0 | G137: =SUM(G128:G136) -> 0 | H137: 0 | I137: 0 | J137: 0
A138: =A120 -> 2 | B138: =B120 -> 2 | C138: Итого за день: | F138: =F127+F137 -> 600 | G138: =G127+G137 -> 21.4 | H138: =H127+H137 -> 22.2 | I138: =I127+I137 -> 65.9 | J138: =J127+J137 -> 587.2
A139: 2 | B139: 3 | C139: Завтрак | D139: гор.блюдо | E139: Капуста тушеная | F139: 170 | G139: 14.4 | H139: 20.4 | I139: 3.7 | J139: 255.5 | K139: 773
E140: Фрикадельки куриные | F140: 90 | G140: 16 | H140: 8.2 | I140: 5.2 | J140: 158.6 | K140: 738
D141: гор.напиток | E141: Чай с лимоном и медом | F141: 200 | G141: 0.3 | H141: 0.1 | I141: 7.6 | J141: 32 | K141: 1009
D142: хлеб | E142: Хлеб ржаной | F142: 35 | G142: 2.3 | H142: 0.4 | I142: 11.7 | J142: 59.8
D143: фрукты
E144: Хлеб пшеничный | F144: 35 | G144: 2.7 | H144: 0.3 | I144: 17.2 | J144: 82
D146: итого | F146: =SUM(F139:F145) -> 530 | G146: =SUM(G139:G145) -> 35.7 | H146: 29.4 | I146: 45.4 | J146: 587.9
A147: =A139 -> 2 | B147: =B139 -> 3 | C147: Обед | D147: закуска
D148: 1 блюдо
D149: 2 блюдо
D150: гарнир
D151: напиток
D152: хлеб бел.
D153: хлеб черн.
D156: итого | F156: =SUM(F147:F155) -> 0 | G156: =SUM(G147:G155) -> 0 | H156: 0 | I156: 0 | J156: 0
A157: =A139 -> 2 | B157: =B139 -> 3 | C157: Итого за день: | F157: =F146+F156 -> 530 | G157: =G146+G156 -> 35.7 | H157: =H146+H156 -> 29.4 | I157: =I146+I156 -> 45.4 | J157: =J146+J156 -> 587.9
A158: 2 | B158: 4 | C158: Завтрак | D158: гор.блюдо | E158: Каша гречневая рассыпчатая | F158: 150 | G158: 8.2 | H158: 6.3 | I158: 35.9 | J158: 203.2 | K158: 744
E159: Котлета из курицы | F159: 90 | G159: 17.2 | H159: 3.9 | I159: 12 | J159: 140.8 | K159: 732
D160: гор.напиток | E160: Какао с молоком | F160: 200 | G160: 4.7 | H160: 3.5 | I160: 12.5 | J160: 100.4 | K160: 1025
D161: хлеб | E161: Хлеб пшеничный | F161: 15 | G161: 1.1 | H161: 0.1 | I161: 7.4 | J161: 35.2
D162: фрукты | E162: Яйцо | F162: 40 | G162: 4.8 | H162: 4 | I162: 0.3 | J162: 56.6 | K162: 453
E163: Хлеб ржаной | F163: 10 | G163: 0.7 | H163: 0.1 | I163: 3.3 | J163: 17.1
E164: Соус молочный натуральный | F164: 30 | G164: 1.1 | H164: 2.2 | I164: 2.9 | J164: 33.7 | K164: 859
D165: итого | F165: =SUM(F158:F164) -> 535 | G165: =SUM(G158:G164) -> 37.8 | H165: 20.1 | I165: 74.3 | J165: 587
A166: =A158 -> 2 | B166: =B158 -> 4 | C166: Обед | D166: закуска
D167: 1 блюдо
D168: 2 блюдо
D169: гарнир
D170: напиток
D171: хлеб бел.
D172: хлеб черн.
D175: итого | F175: =SUM(F166:F174) -> 0 | G175: =SUM(G166:G174) -> 0 | H175: 0 | I175: 0 | J175: 0
A176: =A158 -> 2 | B176: =B158 -> 4 | C176: Итого за день: | F176: =F165+F175 -> 535 | G176: =G165+G175 -> 37.8 | H176: =H165+H175 -> 20.1 | I176: =I165+I175 -> 74.3 | J176: =J165+J175 -> 587
A177: 2 | B177: 5 | C177: Завтрак | D177: гор.блюдо | E177: Овощное рагу с баклажанами | F177: 150 | G177: 3 | H177: 6.8 | I177: 15 | J177: 163.6 | K177: 348
E178: Тефтели из говядины с рисом | F178: 90 | G178: 13 | H178: 13.2 | I178: 7.3 | J178: 199.7 | K178: 669
D179: гор.напиток | E179: Кофеный напиток с молоком | F179: 200 | G179: 3.9 | H179: 2.9 | I179: 11.2 | J179: 89 | K179: 1024
D180: хлеб | E180: Хлеб пшеничный | F180: 25 | G180: 1.5 | H180: 0.2 | I180: 9.8 | J180: 46.9
D181: фрукты
E182: Хлеб ржаной | F182: 20 | G182: 1.3 | H182: 0.2 | I182: 6.7 | J182: 34.2
E183: Сыр твердых сортов в нарезке | F183: 15 | G183: 3.5 | H183: 4.4 | I183: 0 | J183: 53.7 | K183: 42
D184: итого | F184: =SUM(F177:F183) -> 500 | G184: =SUM(G177:G183) -> 26.2 | H184: 27.7 | I184: 50 | J184: 587.1
A185: =A177 -> 2 | B185: =B177 -> 5 | C185: Обед | D185: закуска
D186: 1 блюдо
D187: 2 блюдо
D188: гарнир
D189: напиток
D190: хлеб бел.
D191: хлеб черн.
D194: итого | F194: =SUM(F185:F193) -> 0 | G194: =SUM(G185:G193) -> 0 | H194: 0 | I194: 0 | J194: 0
A195: =A177 -> 2 | B195: =B177 -> 5 | C195: Итого за день: | F195: =F184+F194 -> 500 | G195: =G184+G194 -> 26.2 | H195: =H184+H194 -> 27.7 | I195: =I184+I194 -> 50 | J195: =J184+J194 -> 587.1
C196: Среднее значение за период: | F196: =(F24+F43+F62+F81+F100+F119+F138+F157+F176+F195)/(IF(F24=0,0,1)+IF(F43=0,0,1)+IF(F62=0,0,1)+IF(F81=0,0,1)+IF(F100=0,0,1)+IF(F119=0,0,1)+IF(F138=0,0,1)+IF(F157=0,0,1)+IF(F176=0,0,1)+IF(F195=0,0,1)) -> 543 | G196: =(G24+G43+G62+G81+G100+G119+G138+G157+G176+G195)/(IF(G24=0,0,1)+IF(G43=0,0,1)+IF(G62=0,0,1)+IF(G81=0,0,1)+IF(G100=0,0,1)+IF(G119=0,0,1)+IF(G138=0,0,1)+IF(G157=0,0,1)+IF(G176=0,0,1)+IF(G195=0,0,1)) -> 26 | H196: 21.19 | I196: 72.07 | J196: 587.27
